[Event "Early-Titled-Tuesday-Blitz-March-05-2024"]
[Site "Chess.com"]
[Date "2024.03.05"]
[Round "2"]
[White "AEMEffi"]
[Black "Martial2008"]
[Result "0-1"]
[WhiteElo "2328"]
[BlackElo "2661"]
[TimeControl "180+1"]
[EndTime "8:19:22 PST"]
[Termination "Martial2008 won by resignation"]

1. d4 {[%clk 0:03:00.9]} 1... Nf6 {[%clk 0:02:59.1]} 2. c4 {[%clk 0:03:00.5]}
2... g6 {[%clk 0:02:47.7]} 3. Nc3 {[%clk 0:03:00.1]} 3... Bg7 {[%clk 0:02:46.2]}
4. e4 {[%clk 0:02:59.8]} 4... d6 {[%clk 0:02:46.6]} 5. h3 {[%clk 0:03:00.1]}
5... O-O {[%clk 0:02:46.9]} 6. Be3 {[%clk 0:02:53.7]} 6... e5 {[%clk 0:02:46.6]}
7. d5 {[%clk 0:02:53.1]} 7... Nh5 {[%clk 0:02:40.2]} 8. Be2 {[%clk 0:02:47.3]}
8... Nf4 {[%clk 0:02:40.1]} 9. Bf3 {[%clk 0:02:47.6]} 9... f5 {[%clk 0:02:25.3]}
10. g3 {[%clk 0:02:47.4]} 10... fxe4 {[%clk 0:02:25.6]} 11. Bxe4 {[%clk
0:02:09.7]} 11... Nh5 {[%clk 0:02:06.6]} 12. Bg2 {[%clk 0:01:55.5]} 12... Nd7
{[%clk 0:02:02.4]} 13. Nf3 {[%clk 0:01:53.9]} 13... h6 {[%clk 0:01:59.3]} 14.
Ne4 {[%clk 0:01:50.6]} 14... Ndf6 {[%clk 0:01:57.6]} 15. Nfd2 {[%clk 0:01:50.7]}
15... Nxe4 {[%clk 0:01:56.1]} 16. Nxe4 {[%clk 0:01:51.6]} 16... Nf6 {[%clk
0:01:44.7]} 17. Qd2 {[%clk 0:01:44.1]} 17... Kh7 {[%clk 0:01:43]} 18. g4 {[%clk
0:01:34.1]} 18... b6 {[%clk 0:01:21.5]} 19. Nxf6+ {[%clk 0:00:48.7]} 19... Bxf6
{[%clk 0:01:19.3]} 20. Be4 {[%clk 0:00:49.6]} 20... Bg5 {[%clk 0:01:18.4]} 21.
Qd3 {[%clk 0:00:36.8]} 21... Bxe3 {[%clk 0:01:14.9]} 22. Qxe3 {[%clk 0:00:31.2]}
22... Qg5 {[%clk 0:01:13.4]} 23. Qxg5 {[%clk 0:00:29.6]} 23... hxg5 {[%clk
0:01:14.3]} 24. f3 {[%clk 0:00:28.7]} 24... Kg7 {[%clk 0:01:12.2]} 25. Ke2
{[%clk 0:00:27.3]} 25... Rh8 {[%clk 0:01:10.9]} 26. b4 {[%clk 0:00:26.9]} 26...
a5 {[%clk 0:01:08.9]} 27. a3 {[%clk 0:00:25.6]} 27... Bd7 {[%clk 0:01:03.9]} 28.
Kf2 {[%clk 0:00:24.5]} 28... Kf6 {[%clk 0:00:50.2]} 29. Kg3 {[%clk 0:00:22.8]}
29... Ke7 {[%clk 0:00:50]} 30. b5 {[%clk 0:00:18.6]} 30... Kf6 {[%clk
0:00:45.3]} 31. a4 {[%clk 0:00:18]} 31... Rh4 {[%clk 0:00:42.7]} 32. Ra2 {[%clk
0:00:16.6]} 32... Rah8 {[%clk 0:00:43.2]} 33. Rg2 {[%clk 0:00:14.9]} 33... Kg7
{[%clk 0:00:43.6]} 34. Rgh2 {[%clk 0:00:15]} 34... Rf8 {[%clk 0:00:44]} 35. Rg2
{[%clk 0:00:14.7]} 35... Rf4 {[%clk 0:00:44.5]} 36. Rgh2 {[%clk 0:00:13.9]}
36... Bc8 {[%clk 0:00:42.8]} 37. Re1 {[%clk 0:00:13.1]} 37... Rh8 {[%clk
0:00:40.6]} 38. Rhh1 {[%clk 0:00:12.6]} 38... Bd7 {[%clk 0:00:38.6]} 39. h4
{[%clk 0:00:11.5]} 39... gxh4+ {[%clk 0:00:27.5]} 40. Rxh4 {[%clk 0:00:12.4]}
40... Rxh4 {[%clk 0:00:27.9]} 41. Kxh4 {[%clk 0:00:13.1]} 41... Kf6 {[%clk
0:00:28.6]} 42. Kg3 {[%clk 0:00:13.1]} 42... Kg5 {[%clk 0:00:28.2]} 43. Re2
{[%clk 0:00:12.8]} 43... Bc8 {[%clk 0:00:25]} 44. Re1 {[%clk 0:00:12.7]} 44...
Bd7 {[%clk 0:00:17.3]} 45. Re2 {[%clk 0:00:12.6]} 45... Be8 {[%clk 0:00:17.4]}
46. Re1 {[%clk 0:00:12.7]} 46... Bf7 {[%clk 0:00:18.1]} 47. Re2 {[%clk 0:00:13]}
47... Bg8 {[%clk 0:00:18.6]} 48. Re1 {[%clk 0:00:13.1]} 48... Rf7 {[%clk
0:00:19.5]} 49. Re2 {[%clk 0:00:13.3]} 49... Rh7 {[%clk 0:00:19.7]} 50. Re1
{[%clk 0:00:13.2]} 50... Bf7 {[%clk 0:00:20.3]} 51. Kg2 {[%clk 0:00:12.7]} 51...
Kf4 {[%clk 0:00:19.7]} 52. Rh1 {[%clk 0:00:10.6]} 52... Rxh1 {[%clk 0:00:19.5]}
53. Kxh1 {[%clk 0:00:11.5]} 53... Kg3 {[%clk 0:00:18.4]} 54. Kg1 {[%clk
0:00:11.7]} 54... g5 {[%clk 0:00:16.7]} 55. Kf1 {[%clk 0:00:11.4]} 55... Be8
{[%clk 0:00:14.5]} 56. Ke2 {[%clk 0:00:11.6]} 56... Kf4 {[%clk 0:00:14.2]} 57.
Kf2 {[%clk 0:00:11.5]} 57... Bd7 {[%clk 0:00:14.7]} 58. Bg6 {[%clk 0:00:10.4]}
58... e4 {[%clk 0:00:13.2]} 59. fxe4 {[%clk 0:00:07]} 59... Bxg4 {[%clk
0:00:12.9]} 60. Kg2 {[%clk 0:00:06.7]} 60... Bd1 {[%clk 0:00:12.9]} 61. Kf2
{[%clk 0:00:07.6]} 61... Bxa4 {[%clk 0:00:13]} 0-1

[Event "Early-Titled-Tuesday-Blitz-March-05-2024"]
[Site "Chess.com"]
[Date "2024.03.05"]
[Round "2"]
[White "alvarorodriguezavila"]
[Black "Kotlyar_K"]
[Result "0-1"]
[WhiteElo "2352"]
[BlackElo "2594"]
[TimeControl "180+1"]
[EndTime "8:19:22 PST"]
[Termination "Kotlyar_K won on time"]

1. e4 {[%clk 0:03:00.9]} 1... c5 {[%clk 0:02:58.6]} 2. d4 {[%clk 0:02:59.9]}
2... cxd4 {[%clk 0:02:58.6]} 3. c3 {[%clk 0:03:00.4]} 3... dxc3 {[%clk 0:02:58]}
4. Nf3 {[%clk 0:03:00]} 4... Nc6 {[%clk 0:02:19.7]} 5. Nxc3 {[%clk 0:02:59.9]}
5... d6 {[%clk 0:02:11.3]} 6. Bc4 {[%clk 0:03:00.1]} 6... a6 {[%clk 0:02:07.2]}
7. O-O {[%clk 0:02:59.6]} 7... Nf6 {[%clk 0:01:19.5]} 8. h3 {[%clk 0:02:59.1]}
8... e6 {[%clk 0:01:16]} 9. Qe2 {[%clk 0:02:59.3]} 9... Be7 {[%clk 0:01:15.5]}
10. Rd1 {[%clk 0:02:59.9]} 10... Qc7 {[%clk 0:00:40.1]} 11. Bf4 {[%clk
0:02:58.1]} 11... Ne5 {[%clk 0:00:38.6]} 12. Bb3 {[%clk 0:02:56]} 12... O-O
{[%clk 0:00:36.7]} 13. Rac1 {[%clk 0:02:56.4]} 13... Qb8 {[%clk 0:00:35.8]} 14.
a4 {[%clk 0:02:26.3]} 14... Bd7 {[%clk 0:00:31.4]} 15. Nd4 {[%clk 0:02:16.6]}
15... Ng6 {[%clk 0:00:30.4]} 16. Bh2 {[%clk 0:02:16]} 16... Rc8 {[%clk
0:00:26.6]} 17. f4 {[%clk 0:01:58.2]} 17... Qa7 {[%clk 0:00:25.7]} 18. Kh1
{[%clk 0:01:53.3]} 18... Qb6 {[%clk 0:00:24.8]} 19. f5 {[%clk 0:01:52]} 19...
exf5 {[%clk 0:00:18.6]} 20. exf5 {[%clk 0:01:52.3]} 20... Ne5 {[%clk 0:00:19.2]}
21. Bxe5 {[%clk 0:01:29.9]} 21... dxe5 {[%clk 0:00:20.1]} 22. Qxe5 {[%clk
0:01:30.3]} 22... Qb4 {[%clk 0:00:20.1]} 23. Nd5 {[%clk 0:01:04]} 23... Nxd5
{[%clk 0:00:16.4]} 24. Qxd5 {[%clk 0:01:04.3]} 24... Be8 {[%clk 0:00:14.2]} 25.
Re1 {[%clk 0:00:52.8]} 25... Rxc1 {[%clk 0:00:07.6]} 26. Rxc1 {[%clk 0:00:53.7]}
26... Bf6 {[%clk 0:00:08]} 27. Nc2 {[%clk 0:00:17.5]} 27... Qe7 {[%clk
0:00:06.5]} 28. Re1 {[%clk 0:00:16.8]} 28... Qd7 {[%clk 0:00:05]} 29. Qf3 {[%clk
0:00:14.5]} 29... Qc7 {[%clk 0:00:03.5]} 30. Ne3 {[%clk 0:00:08.8]} 30... Bc6
{[%clk 0:00:03.8]} 31. Bd5 {[%clk 0:00:08.9]} 31... Rd8 {[%clk 0:00:03.1]} 32.
Bxc6 {[%clk 0:00:08.5]} 32... bxc6 {[%clk 0:00:04]} 33. b3 {[%clk 0:00:09]}
33... Qb6 {[%clk 0:00:04.2]} 34. Nc4 {[%clk 0:00:07.7]} 34... Qb4 {[%clk
0:00:04.6]} 35. Qe3 {[%clk 0:00:06.1]} 35... h6 {[%clk 0:00:04.6]} 36. g4 {[%clk
0:00:04.9]} 36... Bg5 {[%clk 0:00:04.3]} 37. Qe2 {[%clk 0:00:05.2]} 37... Qxb3
{[%clk 0:00:03.9]} 38. Na5 {[%clk 0:00:04.3]} 38... Qxh3+ {[%clk 0:00:04]} 39.
Qh2 {[%clk 0:00:03.9]} 39... Qxg4 {[%clk 0:00:03.2]} 40. Nxc6 {[%clk 0:00:03.7]}
40... Qf3+ {[%clk 0:00:03.6]} 41. Qg2 {[%clk 0:00:03.5]} 41... Qxg2+ {[%clk
0:00:04.2]} 42. Kxg2 {[%clk 0:00:04.4]} 42... Rd2+ {[%clk 0:00:04.9]} 43. Kf3
{[%clk 0:00:04.7]} 43... Ra2 {[%clk 0:00:05.6]} 44. Re4 {[%clk 0:00:04.3]} 44...
Ra3+ {[%clk 0:00:05.4]} 45. Kg4 {[%clk 0:00:04.1]} 45... Bf6 {[%clk 0:00:06.3]}
46. Re8+ {[%clk 0:00:03.5]} 46... Kh7 {[%clk 0:00:06.6]} 47. Re4 {[%clk
0:00:04.4]} 47... g6 {[%clk 0:00:05.9]} 48. Rc4 {[%clk 0:00:04.1]} 48... h5+
{[%clk 0:00:06]} 49. Kf4 {[%clk 0:00:04]} 49... g5+ {[%clk 0:00:06.6]} 50. Ke4
{[%clk 0:00:04.6]} 50... h4 {[%clk 0:00:07.2]} 51. a5 {[%clk 0:00:03.3]} 51...
h3 {[%clk 0:00:07]} 52. Rc2 {[%clk 0:00:03.9]} 52... g4 {[%clk 0:00:07.1]} 53.
Kf4 {[%clk 0:00:03.5]} 53... Ra4+ {[%clk 0:00:06.9]} 54. Kg3 {[%clk 0:00:03.6]}
54... Kh6 {[%clk 0:00:07.3]} 55. Rc3 {[%clk 0:00:01.3]} 55... Bxc3 {[%clk
0:00:06.8]} 0-1

[Event "Early-Titled-Tuesday-Blitz-March-05-2024"]
[Site "Chess.com"]
[Date "2024.03.05"]
[Round "2"]
[White "moro182"]
[Black "GameOverBro"]
[Result "1/2-1/2"]
[WhiteElo "2815"]
[BlackElo "2561"]
[TimeControl "180+1"]
[EndTime "8:19:24 PST"]
[Termination "Game drawn - insufficient material"]

1. d4 {[%clk 0:03:00.9]} 1... d6 {[%clk 0:02:58.9]} 2. e4 {[%clk 0:03:00.3]}
2... Nf6 {[%clk 0:02:59]} 3. Nc3 {[%clk 0:03:00.1]} 3... e5 {[%clk 0:02:59.7]}
4. dxe5 {[%clk 0:03:01]} 4... dxe5 {[%clk 0:03:00]} 5. Qxd8+ {[%clk 0:03:01.7]}
5... Kxd8 {[%clk 0:03:00.9]} 6. Bc4 {[%clk 0:03:02]} 6... Ke8 {[%clk 0:03:00.7]}
7. f3 {[%clk 0:02:58.7]} 7... c6 {[%clk 0:02:57.7]} 8. Be3 {[%clk 0:02:56.9]}
8... Nbd7 {[%clk 0:02:57.9]} 9. Nh3 {[%clk 0:02:46.9]} 9... Bc5 {[%clk
0:02:56.9]} 10. Ke2 {[%clk 0:02:45.8]} 10... b5 {[%clk 0:02:53.8]} 11. Bb3
{[%clk 0:02:45.6]} 11... a5 {[%clk 0:02:53.4]} 12. a4 {[%clk 0:02:45.1]} 12...
b4 {[%clk 0:02:50.6]} 13. Nb1 {[%clk 0:02:45.2]} 13... Ba6+ {[%clk 0:02:50.7]}
14. Kf2 {[%clk 0:02:45.7]} 14... Bxe3+ {[%clk 0:02:38.8]} 15. Kxe3 {[%clk
0:02:46.6]} 15... Nb6 {[%clk 0:02:37.5]} 16. Rd1 {[%clk 0:02:41.7]} 16... Ke7
{[%clk 0:02:34.8]} 17. Nf2 {[%clk 0:02:38.4]} 17... Rhd8 {[%clk 0:02:29]} 18.
Nd2 {[%clk 0:02:37.9]} 18... c5 {[%clk 0:02:29]} 19. c4 {[%clk 0:02:22.8]} 19...
bxc3 {[%clk 0:02:25.2]} 20. bxc3 {[%clk 0:02:23.7]} 20... c4 {[%clk 0:02:22.6]}
21. Bc2 {[%clk 0:02:21.2]} 21... Rd6 {[%clk 0:02:18.2]} 22. Nf1 {[%clk
0:02:05.7]} 22... Rad8 {[%clk 0:02:17.7]} 23. Rxd6 {[%clk 0:02:05]} 23... Rxd6
{[%clk 0:02:17.5]} 24. Rb1 {[%clk 0:02:04.2]} 24... Nfd7 {[%clk 0:02:14.6]} 25.
g3 {[%clk 0:01:57]} 25... Nc5 {[%clk 0:02:12.5]} 26. Ra1 {[%clk 0:01:47.5]}
26... Bc8 {[%clk 0:02:09.8]} 27. f4 {[%clk 0:01:42.9]} 27... f6 {[%clk
0:02:04.7]} 28. Nd2 {[%clk 0:01:42.3]} 28... Bd7 {[%clk 0:01:57.6]} 29. fxe5
{[%clk 0:01:32.1]} 29... fxe5 {[%clk 0:01:56]} 30. Nf3 {[%clk 0:01:32.1]} 30...
Kf6 {[%clk 0:01:41.1]} 31. Nd2 {[%clk 0:01:24.1]} 31... g5 {[%clk 0:01:36.2]}
32. h4 {[%clk 0:01:20.5]} 32... g4 {[%clk 0:01:32.4]} 33. Ra3 {[%clk 0:00:58.2]}
33... h5 {[%clk 0:01:31.4]} 34. Bd1 {[%clk 0:00:56]} 34... Bc6 {[%clk
0:01:25.1]} 35. Be2 {[%clk 0:00:48.5]} 35... Bxa4 {[%clk 0:00:54.3]} 36. Nxc4
{[%clk 0:00:46.5]} 36... Nxc4+ {[%clk 0:00:48]} 37. Bxc4 {[%clk 0:00:47.4]}
37... Rb6 {[%clk 0:00:41.4]} 38. Nd3 {[%clk 0:00:45.1]} 38... Nxd3 {[%clk
0:00:32.4]} 39. Kxd3 {[%clk 0:00:32.3]} 39... Bb5 {[%clk 0:00:21.1]} 40. Bxb5
{[%clk 0:00:28.4]} 40... Rxb5 {[%clk 0:00:22]} 41. Kc4 {[%clk 0:00:29.1]} 41...
Rb1 {[%clk 0:00:20]} 42. Kd5 {[%clk 0:00:28.3]} 42... Rg1 {[%clk 0:00:19.8]} 43.
c4 {[%clk 0:00:27.9]} 43... Rd1+ {[%clk 0:00:19.9]} 44. Kc6 {[%clk 0:00:27.7]}
44... Rd4 {[%clk 0:00:20]} 45. c5 {[%clk 0:00:28]} 45... Rxe4 {[%clk 0:00:20.1]}
46. Rxa5 {[%clk 0:00:25.2]} 46... Re3 {[%clk 0:00:19.1]} 47. Kb6 {[%clk
0:00:19.1]} 47... Rxg3 {[%clk 0:00:16.4]} 48. c6 {[%clk 0:00:19.6]} 48... Ke7
{[%clk 0:00:16.8]} 49. Rxe5+ {[%clk 0:00:16]} 49... Kd6 {[%clk 0:00:15.4]} 50.
Rxh5 {[%clk 0:00:10.3]} 50... Rb3+ {[%clk 0:00:14.7]} 51. Ka5 {[%clk 0:00:10.3]}
51... Kxc6 {[%clk 0:00:13.5]} 52. Rg5 {[%clk 0:00:10.9]} 52... g3 {[%clk
0:00:13.3]} 53. h5 {[%clk 0:00:11.5]} 53... Kd6 {[%clk 0:00:12.2]} 54. h6 {[%clk
0:00:12]} 54... g2 {[%clk 0:00:10.2]} 55. Rxg2 {[%clk 0:00:10.5]} 55... Rh3
{[%clk 0:00:10.8]} 56. Rg6+ {[%clk 0:00:11.1]} 56... Ke7 {[%clk 0:00:10.9]} 57.
Kb5 {[%clk 0:00:11.8]} 57... Kf7 {[%clk 0:00:11.5]} 58. Rb6 {[%clk 0:00:11.7]}
58... Kg8 {[%clk 0:00:11.4]} 59. Kc5 {[%clk 0:00:11.8]} 59... Kh7 {[%clk
0:00:12.1]} 60. Kd5 {[%clk 0:00:11.8]} 60... Rxh6 {[%clk 0:00:12.7]} 61. Rb7+
{[%clk 0:00:12.7]} 61... Kg6 {[%clk 0:00:13.1]} 62. Ke5 {[%clk 0:00:13.2]} 62...
Rh5+ {[%clk 0:00:13.5]} 63. Ke6 {[%clk 0:00:13.9]} 63... Rg5 {[%clk 0:00:13.8]}
64. Rb6 {[%clk 0:00:13.7]} 64... Kh5 {[%clk 0:00:14.4]} 65. Rb1 {[%clk
0:00:12.9]} 65... Kg4 {[%clk 0:00:13.9]} 66. Rg1+ {[%clk 0:00:11.1]} 66... Kf4
{[%clk 0:00:14.1]} 67. Rf1+ {[%clk 0:00:11.6]} 67... Kg4 {[%clk 0:00:14.4]} 68.
Kf6 {[%clk 0:00:12]} 68... Ra5 {[%clk 0:00:14.1]} 69. Rg1+ {[%clk 0:00:12.7]}
69... Kf4 {[%clk 0:00:14.6]} 70. Rg6 {[%clk 0:00:12.6]} 70... Ra6+ {[%clk
0:00:14.6]} 71. Kg7 {[%clk 0:00:13.4]} 71... Rxg6+ {[%clk 0:00:15.4]} 72. Kxg6
{[%clk 0:00:14.3]} 1/2-1/2

[Event "Early-Titled-Tuesday-Blitz-March-05-2024"]
[Site "Chess.com"]
[Date "2024.03.05"]
[Round "2"]
[White "Bauman_Guy"]
[Black "Kunalm64"]
[Result "1/2-1/2"]
[WhiteElo "2913"]
[BlackElo "2602"]
[TimeControl "180+1"]
[EndTime "8:19:25 PST"]
[Termination "Game drawn by repetition"]

1. e4 {[%clk 0:03:00.9]} 1... c6 {[%clk 0:02:58.3]} 2. d4 {[%clk 0:03:00.9]}
2... d5 {[%clk 0:02:58.6]} 3. e5 {[%clk 0:03:01.6]} 3... Bf5 {[%clk 0:02:58.2]}
4. h4 {[%clk 0:03:01.7]} 4... h5 {[%clk 0:02:57.9]} 5. Bd3 {[%clk 0:03:02.4]}
5... Bxd3 {[%clk 0:02:58.1]} 6. Qxd3 {[%clk 0:03:03.3]} 6... Qa5+ {[%clk
0:02:58.3]} 7. Nd2 {[%clk 0:03:03.3]} 7... e6 {[%clk 0:02:56]} 8. Nf3 {[%clk
0:03:03.4]} 8... Qa6 {[%clk 0:02:51]} 9. c4 {[%clk 0:03:03.1]} 9... Nd7 {[%clk
0:02:48.9]} 10. b3 {[%clk 0:03:02.5]} 10... Ne7 {[%clk 0:02:48.2]} 11. O-O
{[%clk 0:03:02.3]} 11... Nf5 {[%clk 0:02:48.2]} 12. a4 {[%clk 0:03:02.1]} 12...
Bb4 {[%clk 0:02:47]} 13. Ba3 {[%clk 0:03:02]} 13... Bxa3 {[%clk 0:02:46.3]} 14.
Rxa3 {[%clk 0:03:02.9]} 14... Qb6 {[%clk 0:02:28.1]} 15. a5 {[%clk 0:03:01.7]}
15... Qc7 {[%clk 0:02:27.5]} 16. Rd1 {[%clk 0:02:55]} 16... Qd8 {[%clk
0:02:25.7]} 17. g3 {[%clk 0:02:54.6]} 17... Qe7 {[%clk 0:02:25.3]} 18. Raa1
{[%clk 0:02:50.9]} 18... O-O {[%clk 0:02:24.6]} 19. Nf1 {[%clk 0:02:49.5]} 19...
Rfd8 {[%clk 0:02:11.7]} 20. Ne3 {[%clk 0:02:47.8]} 20... Nxe3 {[%clk 0:01:47.5]}
21. Qxe3 {[%clk 0:02:39.8]} 21... Nf8 {[%clk 0:01:44.3]} 22. Ng5 {[%clk
0:02:36.5]} 22... f6 {[%clk 0:01:31.3]} 23. exf6 {[%clk 0:02:30.3]} 23... Qxf6
{[%clk 0:01:10.5]} 24. Qe2 {[%clk 0:02:20.3]} 24... dxc4 {[%clk 0:01:09.3]} 25.
Qxc4 {[%clk 0:02:08.6]} 25... Rd5 {[%clk 0:01:08.4]} 26. a6 {[%clk 0:02:08.5]}
26... bxa6 {[%clk 0:00:59.2]} 27. Rxa6 {[%clk 0:02:07.9]} 27... Rad8 {[%clk
0:00:58.9]} 28. Rxa7 {[%clk 0:01:55.2]} 28... Rxd4 {[%clk 0:00:57.8]} 29. Rxd4
{[%clk 0:01:55.1]} 29... Rxd4 {[%clk 0:00:57.3]} 30. Qe2 {[%clk 0:01:53.1]}
30... Rg4 {[%clk 0:00:41.6]} 31. Ra8 {[%clk 0:01:39.2]} 31... e5 {[%clk
0:00:39.4]} 32. Qc2 {[%clk 0:01:24.5]} 32... g6 {[%clk 0:00:23.4]} 33. Rc8
{[%clk 0:01:24.7]} 33... Qf5 {[%clk 0:00:14.9]} 34. Qxf5 {[%clk 0:01:16.1]}
34... gxf5 {[%clk 0:00:15.1]} 35. Ne6 {[%clk 0:01:17]} 35... Kf7 {[%clk
0:00:13.6]} 36. Nxf8 {[%clk 0:01:12.5]} 36... Rg8 {[%clk 0:00:13.9]} 37. Rc7+
{[%clk 0:01:09.1]} 37... Kxf8 {[%clk 0:00:14.2]} 38. Rxc6 {[%clk 0:01:09.6]}
38... Kg7 {[%clk 0:00:13.6]} 39. b4 {[%clk 0:01:05.1]} 39... Rb8 {[%clk
0:00:14]} 40. Rc5 {[%clk 0:01:05.4]} 40... Rxb4 {[%clk 0:00:10.7]} 41. Rxe5
{[%clk 0:01:05.7]} 41... Kf6 {[%clk 0:00:10.7]} 42. Re8 {[%clk 0:01:05.4]} 42...
f4 {[%clk 0:00:09.5]} 43. Rf8+ {[%clk 0:00:56.1]} 43... Ke5 {[%clk 0:00:08.9]}
44. Rh8 {[%clk 0:00:52.7]} 44... fxg3 {[%clk 0:00:08.4]} 45. fxg3 {[%clk
0:00:53.6]} 45... Kf5 {[%clk 0:00:03.8]} 46. Kg2 {[%clk 0:00:46.6]} 46... Rb2+
{[%clk 0:00:03.1]} 47. Kh3 {[%clk 0:00:45.9]} 47... Kg6 {[%clk 0:00:03.8]} 48.
Rg8+ {[%clk 0:00:46.5]} 48... Kh6 {[%clk 0:00:04.2]} 49. Rg5 {[%clk 0:00:47.2]}
49... Rb3 {[%clk 0:00:04.5]} 50. Rf5 {[%clk 0:00:47.6]} 50... Ra3 {[%clk
0:00:04.8]} 51. Kg2 {[%clk 0:00:48]} 51... Rb3 {[%clk 0:00:04.7]} 52. Re5 {[%clk
0:00:47.8]} 52... Rc3 {[%clk 0:00:05]} 53. Kf2 {[%clk 0:00:47.9]} 53... Rb3
{[%clk 0:00:05.3]} 54. Re3 {[%clk 0:00:48.3]} 54... Rb2+ {[%clk 0:00:04.8]} 55.
Kf3 {[%clk 0:00:49.2]} 55... Rb4 {[%clk 0:00:05]} 56. Re4 {[%clk 0:00:49.4]}
56... Rb3+ {[%clk 0:00:04.8]} 57. Kf4 {[%clk 0:00:50.1]} 57... Rb5 {[%clk
0:00:04.9]} 58. Re6+ {[%clk 0:00:49.7]} 58... Kg7 {[%clk 0:00:04.5]} 59. Re5
{[%clk 0:00:49.2]} 59... Rb4+ {[%clk 0:00:04.9]} 60. Re4 {[%clk 0:00:49.7]}
60... Rb3 {[%clk 0:00:03.1]} 61. Re3 {[%clk 0:00:46.8]} 61... Rxe3 {[%clk
0:00:02.5]} 62. Kxe3 {[%clk 0:00:47]} 62... Kf7 {[%clk 0:00:02.7]} 63. Kf3
{[%clk 0:00:37.3]} 63... Ke7 {[%clk 0:00:02.9]} 64. Ke3 {[%clk 0:00:34]} 64...
Kf7 {[%clk 0:00:03.4]} 65. Kd3 {[%clk 0:00:33]} 65... Ke7 {[%clk 0:00:03.8]} 66.
Ke3 {[%clk 0:00:24.1]} 66... Kf7 {[%clk 0:00:04.3]} 1/2-1/2

[Event "Early-Titled-Tuesday-Blitz-March-05-2024"]
[Site "Chess.com"]
[Date "2024.03.05"]
[Round "2"]
[White "elmusmolamas"]
[Black "kyuotbi"]
[Result "1-0"]
[WhiteElo "2519"]
[BlackElo "2307"]
[TimeControl "180+1"]
[EndTime "8:19:29 PST"]
[Termination "elmusmolamas won on time"]

1. e4 {[%clk 0:03:00.9]} 1... e5 {[%clk 0:02:58.3]} 2. Nf3 {[%clk 0:03:00.6]}
2... Nc6 {[%clk 0:02:58.5]} 3. Bc4 {[%clk 0:03:01.3]} 3... Nf6 {[%clk
0:02:57.8]} 4. O-O {[%clk 0:02:50]} 4... h6 {[%clk 0:02:49]} 5. Re1 {[%clk
0:02:45.6]} 5... g6 {[%clk 0:02:48.5]} 6. c3 {[%clk 0:02:45.7]} 6... Bg7 {[%clk
0:02:36.5]} 7. d4 {[%clk 0:02:45.4]} 7... d6 {[%clk 0:02:36.9]} 8. dxe5 {[%clk
0:02:44.2]} 8... dxe5 {[%clk 0:02:35.3]} 9. Qxd8+ {[%clk 0:02:38.9]} 9... Nxd8
{[%clk 0:02:34.3]} 10. Nxe5 {[%clk 0:02:39.3]} 10... Be6 {[%clk 0:02:33.3]} 11.
Bxe6 {[%clk 0:02:33.9]} 11... Nxe6 {[%clk 0:02:33.8]} 12. Nd3 {[%clk 0:02:27.5]}
12... O-O-O {[%clk 0:02:33.2]} 13. Nf4 {[%clk 0:02:27.8]} 13... Ng5 {[%clk
0:02:30.8]} 14. f3 {[%clk 0:02:22.4]} 14... Rhe8 {[%clk 0:02:21.1]} 15. Be3
{[%clk 0:02:05.8]} 15... b6 {[%clk 0:02:05.3]} 16. Na3 {[%clk 0:02:04.4]} 16...
Nd7 {[%clk 0:01:52.4]} 17. Rad1 {[%clk 0:01:58.5]} 17... Ne5 {[%clk 0:01:48.2]}
18. Kf2 {[%clk 0:01:49.7]} 18... Bf8 {[%clk 0:01:20.5]} 19. b4 {[%clk
0:01:30.3]} 19... a5 {[%clk 0:01:15.3]} 20. Nc2 {[%clk 0:01:22.5]} 20... Nc4
{[%clk 0:01:07.4]} 21. Bd4 {[%clk 0:01:16.3]} 21... Bd6 {[%clk 0:01:00.3]} 22.
Nd5 {[%clk 0:01:09.6]} 22... Ne6 {[%clk 0:00:51.3]} 23. Bf6 {[%clk 0:00:53.1]}
23... Rd7 {[%clk 0:00:51.4]} 24. g3 {[%clk 0:00:46.5]} 24... Kb7 {[%clk
0:00:39.4]} 25. Rb1 {[%clk 0:00:34.8]} 25... axb4 {[%clk 0:00:37.9]} 26. cxb4
{[%clk 0:00:26.3]} 26... Ra8 {[%clk 0:00:36.4]} 27. Ra1 {[%clk 0:00:26.9]} 27...
c6 {[%clk 0:00:33.1]} 28. Nde3 {[%clk 0:00:25.2]} 28... Be5 {[%clk 0:00:20.6]}
29. Bxe5 {[%clk 0:00:19.8]} 29... Nxe5 {[%clk 0:00:20.1]} 30. Ke2 {[%clk
0:00:20.4]} 30... Nd4+ {[%clk 0:00:09.8]} 31. Nxd4 {[%clk 0:00:20.9]} 31... Rxd4
{[%clk 0:00:10.3]} 32. a3 {[%clk 0:00:20.8]} 32... Rd3 {[%clk 0:00:10.1]} 33. a4
{[%clk 0:00:14.6]} 33... Rb3 {[%clk 0:00:09.7]} 34. f4 {[%clk 0:00:09.1]} 34...
Nd3 {[%clk 0:00:08.9]} 35. Red1 {[%clk 0:00:08.5]} 35... Nxb4 {[%clk 0:00:06.1]}
36. Rd7+ {[%clk 0:00:09.1]} 36... Ka6 {[%clk 0:00:06.7]} 37. Rxf7 {[%clk
0:00:07.3]} 37... Re8 {[%clk 0:00:07.3]} 38. e5 {[%clk 0:00:07.1]} 38... c5
{[%clk 0:00:07.7]} 39. Rf6 {[%clk 0:00:07.6]} 39... g5 {[%clk 0:00:07]} 40. a5
{[%clk 0:00:08]} 40... Rxe3+ {[%clk 0:00:03]} 41. Kxe3 {[%clk 0:00:07.9]} 41...
Nd5+ {[%clk 0:00:03.6]} 42. Kf3 {[%clk 0:00:07.4]} 42... Nxf6 {[%clk 0:00:04.2]}
43. exf6 {[%clk 0:00:08.3]} 43... Rf8 {[%clk 0:00:04.3]} 44. axb6+ {[%clk
0:00:08.4]} 44... Kxb6 {[%clk 0:00:04.5]} 45. fxg5 {[%clk 0:00:08.3]} 45... hxg5
{[%clk 0:00:04.3]} 46. Kg4 {[%clk 0:00:09.1]} 46... Rxf6 {[%clk 0:00:05]} 47.
Kxg5 {[%clk 0:00:09.8]} 47... Rd6 {[%clk 0:00:04.9]} 48. h4 {[%clk 0:00:09.9]}
48... c4 {[%clk 0:00:05.3]} 49. h5 {[%clk 0:00:10.5]} 49... Kc5 {[%clk 0:00:04]}
50. h6 {[%clk 0:00:10.8]} 50... Rd5+ {[%clk 0:00:02.8]} 51. Kg6 {[%clk
0:00:08.1]} 51... Rd6+ {[%clk 0:00:03.3]} 52. Kg7 {[%clk 0:00:08.8]} 52... Rd7+
{[%clk 0:00:03.8]} 53. Kf8 {[%clk 0:00:07.7]} 53... Rh7 {[%clk 0:00:03.3]} 54.
Rh1 {[%clk 0:00:06.8]} 54... c3 {[%clk 0:00:03.1]} 55. g4 {[%clk 0:00:06.1]}
55... c2 {[%clk 0:00:02.9]} 56. g5 {[%clk 0:00:06.8]} 56... Kd6 {[%clk
0:00:02.4]} 57. Kg8 {[%clk 0:00:05.2]} 1-0